bitfinex/quotes_ETHUSD_20251127
["timestamp","ask_amount","ask_price","bid_price","bid_amount"]
[1764265801261,0.31111084,3018.6,3018.5,6.7145864]
[1764265801676,0.3119292,3018.6,3018.5,6.7145864]
[1764265801989,0.002,3018.6,3018.5,5.62179531]
[1764265802159,0.002,3018.6,3018.5,5.65492434]
[1764265802363,0.002,3018.6,3018.5,7.38463257]
[1764265802566,0.002,3018.6,3018.5,7.35150354]
[1764265802886,0.002,3018.6,3018.5,10.59717202]
[1764265803182,0.002,3018.6,3018.5,12.38532722]
[1764265804061,0.002,3018.6,3018.5,10.59717202]
[1764265804271,0.002,3018.6,3018.5,11.32276613]
[1764265806794,0.002,3018.9,3018.5,11.32276613]
[1764265806984,0.002,3018.9,3018.8,5.61692233]
[1764265807185,0.002,3018.9,3018.8,6.31404807]
[1764265808509,0.002,3018.9,3018.8,9.6266226]
[1764265808663,0.002,3018.9,3018.8,7.80864301]
[1764265810662,0.002,3018.9,3018.8,7.49964301]
[1764265810860,0.002,3018.9,3018.8,6.97704466]
[1764265811082,0.002,3018.9,3018.8,5.99779884]
[1764265813809,0.002,3018.9,3018.8,6.03092458]
[1764265816312,0.002,3019.0,3018.9,1.26449155]
[1764265816512,0.002,3019.0,3018.9,2.21689155]
[1764265816823,0.002,3019.0,3018.9,4.3585704]
[1764265817817,0.002,3019.0,3018.9,4.39169504]
[1764265818420,0.002,3019.0,3018.9,7.70415984]
[1764265818595,0.002,3019.0,3018.9,7.6710352]
[1764265818809,0.002,3019.0,3018.9,7.7710352]
[1764265820632,0.002,3019.0,3018.9,7.6710352]
[1764265820834,0.002,3019.0,3018.9,7.7710352]
[1764265822246,0.002,3019.3,3019.1,1.26249155]
[1764265822570,0.002,3019.3,3019.2,0.8771]
[1764265822695,0.002,3019.3,3019.2,1.13877916]
[1764265822899,0.002,3019.3,3019.2,1.61597916]
[1764265823846,0.0721,3019.3,3019.2,0.26167916]
[1764265824046,0.5472,3019.3,3019.2,3.52113566]
[1764265827739,0.5472,3019.3,3019.2,3.55425701]
[1764265827906,0.5472,3019.3,3019.2,4.81674856]
[1764265828662,0.0721,3019.3,3019.2,4.81674856]
[1764265829333,0.38155708,3019.3,3019.2,4.81674856]
[1764265832346,0.38155708,3019.3,3019.2,1.26249155]
[1764265832543,0.85665708,3019.3,3019.2,1.47149155]
[1764265833449,0.85665708,3019.3,3019.2,4.81674856]
[1764265833615,0.85665708,3019.3,3019.2,1.5046129]
[1764265834986,0.405504,3019.2,3018.6,1.18824582]
[1764265835124,3.42636848,3018.7,3018.5,1.47249155]
[1764265835432,0.37975708,3018.6,3018.5,1.47249155]
[1764265835633,0.85485708,3018.6,3018.5,0.21]
[1764265837726,0.30945708,3018.6,3018.5,4.50843279]
[1764265838052,0.30945708,3018.6,3018.5,4.93982634]
[1764265838247,0.30945708,3018.6,3018.5,5.41702634]
[1764265838442,0.99518496,3019.0,3018.5,4.93982634]
[1764265838639,0.30907276,3018.9,3018.5,4.93982634]
[1764265838951,0.30907276,3018.8,3018.5,5.41702634]
[1764265839141,0.30907276,3018.7,3018.5,5.41700338]
[1764265839341,0.0703,3018.6,3018.5,0.21]
[1764265839964,0.0703,3018.6,3018.5,1.47249155]
[1764265840155,0.0703,3018.6,3018.5,4.78539531]
[1764265840653,0.5454,3018.6,3018.5,1.47249155]
[1764265841960,0.0703,3018.6,3018.5,1.47249155]
[1764265844760,0.0703,3018.6,3018.5,1.26349155]
[1764265844963,0.0703,3018.6,3018.5,1.47249155]
[1764265845572,0.5454,3018.6,3018.5,1.47249155]
[1764265845869,4.30774922,3018.9,3018.5,1.47249155]
[1764265846069,0.30876372,3018.8,3018.6,0.49052794]
[1764265846246,0.72559411,3019.1,3018.6,0.49052794]
[1764265846446,0.30875638,3019.0,3018.6,0.49052794]
[1764265846647,0.30875638,3018.9,3018.6,0.03312794]
[1764265846987,1.47698826,3019.0,3018.6,3.80330562]
[1764265846988,0.30875638,3018.8,3018.6,3.80330562]
[1764265847151,0.99518826,3019.0,3018.6,0.03312794]
[1764265847349,0.30876096,3018.9,3018.6,0.03312794]
[1764265847549,1.47698826,3019.0,3018.6,0.03312794]
[1764265847550,0.30876096,3018.8,3018.6,0.03312794]
[1764265847787,0.99518826,3019.0,3018.6,0.03312794]
[1764265848071,0.7905571,3018.9,3018.6,0.03312794]
[1764265848276,0.3087571,3018.8,3018.6,0.03312794]
[1764265848478,0.4818,3018.9,3018.6,0.03312794]
[1764265848651,0.30875777,3018.8,3018.6,0.03312794]
[1764265848846,0.4818,3018.9,3018.6,0.03312794]
[1764265849051,0.30875775,3018.8,3018.5,4.7853869]
[1764265849253,0.4818,3018.9,3018.5,1.47249155]
[1764265849464,0.30876303,3018.8,3018.5,1.47249155]
[1764265849778,0.4818,3018.9,3018.5,4.78538781]
[1764265849951,0.30876303,3018.8,3018.6,0.4574]
[1764265850151,4.30742374,3019.1,3018.7,0.03312684]
[1764265850352,0.30876384,3019.0,3018.7,0.49672684]
[1764265850574,0.30876384,3018.9,3018.7,0.49672684]
[1764265850781,0.30876384,3018.8,3018.7,0.49672684]
[1764265851680,0.30876384,3018.8,3018.7,1.75921839]
[1764265851984,0.30876384,3018.8,3018.7,1.26249155]
[1764265851985,0.79036384,3018.8,3018.7,1.26249155]
[1764265852284,0.85816384,3018.8,3018.7,1.26249155]
[1764265852470,0.85816384,3018.8,3018.7,1.47149155]
[1764265854782,0.79036384,3018.8,3018.7,1.26249155]
[1764265854993,0.79036384,3018.8,3018.7,1.47149155]
[1764265855769,0.85816384,3018.8,3018.7,1.47149155]
[1764265857862,4.17073837,3018.8,3018.7,1.47149155]
[1764265859597,0.85816384,3018.8,3018.7,1.47149155]
[1764265860765,0.85893516,3018.8,3018.7,1.47149155]
[1764265861506,0.30953516,3018.8,3018.7,1.93509155]
[1764265861711,0.30953516,3018.8,3018.7,2.39249155]
[1764265862096,0.30953516,3018.8,3018.7,2.9665409]
[1764265862700,0.30953516,3018.8,3018.7,6.27922516]
[1764265863100,0.30953516,3018.8,3018.7,6.312352]
[1764265864610,0.30953516,3018.8,3018.7,5.82182516]
[1764265865020,0.30953516,3018.8,3018.7,6.27922516]
[1764265866305,0.30953516,3018.8,3018.7,6.312352]
[1764265867733,0.30953516,3018.8,3018.7,5.04986045]
[1764265867888,0.002,3019.0,3018.8,0.72559411]
[1764265868090,0.002,3019.0,3018.9,0.921]
[1764265868394,0.002,3019.0,3018.9,6.02170821]
[1764265869334,0.002,3019.0,3018.9,10.04566757]
[1764265869488,0.002,3019.0,3018.9,8.22429952]
[1764265869682,0.002,3019.0,3018.9,9.48253271]
[1764265872332,0.002,3019.0,3018.9,11.2638637]
[1764265875489,0.002,3019.0,3018.9,12.52635525]
[1764265876317,0.002,3019.0,3018.9,10.74502426]
[1764265878122,0.002,3019.0,3018.9,7.47978365]
[1764265878303,0.002,3019.0,3018.9,6.29678954]
[1764265878619,0.4683,3019.0,3018.9,0.209]
[1764265878819,0.9577,3019.0,3018.6,3.31369843]
[1764265879126,0.4663,3018.7,3018.6,0.001]
[1764265879425,0.4663,3018.7,3018.6,0.21]
[1764265879726,0.9557,3018.7,3018.6,0.21]
[1764265880410,0.4663,3018.7,3018.6,0.21]
[1764265880610,0.4663,3018.7,3018.6,1.47249155]
[1764265881486,0.4663,3018.7,3018.6,4.78528556]
[1764265883615,0.4663,3018.7,3018.6,4.57628556]
[1764265883923,0.4663,3018.7,3018.6,4.78528556]
[1764265886024,0.002,3019.0,3018.6,9.88642587]
[1764265886233,0.002,3019.0,3018.8,0.4664]
[1764265886441,0.002,3019.0,3018.9,0.03312464]
[1764265886618,0.4914,3019.0,3018.9,0.03312464]
[1764265886936,0.9577,3019.0,3018.7,0.03312684]
[1764265887516,0.4683,3019.0,3018.7,1.17763314]
[1764265887717,0.4683,3019.0,3018.8,6.62514906]
[1764265887918,0.4683,3019.0,3018.9,0.03312464]
[1764265888632,0.002,3019.0,3018.9,0.03312464]
[1764265888933,0.002,3019.0,3018.9,0.49952464]
[1764265889135,0.002,3019.0,3018.9,1.69079201]
[1764265890427,0.002,3019.0,3018.9,6.26574836]
[1764265892210,0.002,3019.0,3018.9,6.36574836]
[1764265893943,0.002,3019.0,3018.9,7.09134247]
[1764265894116,0.002,3019.0,3018.9,8.83954882]
[1764265894824,0.002,3019.0,3018.9,7.05821783]
[1764265895413,0.002,3019.0,3018.9,12.00478943]
[1764265896321,0.002,3019.0,3018.9,8.83954882]
[1764265896846,0.002,3019.0,3018.9,12.08266406]
[1764265898918,0.002,3019.0,3018.9,8.83954882]
[1764265899119,0.002,3019.0,3018.9,9.04854882]
[1764265901245,0.002,3019.0,3018.9,8.73954882]
[1764265901428,0.002,3019.0,3018.9,7.16721783]
[1764265901748,0.002,3019.0,3018.9,9.04854882]
[1764265902343,0.002,3019.0,3018.9,7.26721783]
[1764265908147,0.002,3019.3,3018.9,7.26721783]
[1764265908148,0.002,3019.7,3019.6,1.25449155]
[1764265908320,0.002,3019.7,3019.6,1.46349155]
[1764265908525,0.9299,3019.7,3019.6,1.46349155]
[1764265909455,0.9299,3019.7,3019.6,4.77518846]
[1764265911155,0.9299,3019.7,3019.6,4.56618846]
[1764265911355,0.9299,3019.7,3019.6,4.77518846]
[1764265914641,0.4613,3019.7,3019.6,4.77518846]
[1764265914862,0.002,3019.7,3019.6,16.30821915]
[1764265915034,0.002,3019.7,3019.6,16.85430219]
[1764265915231,0.002,3019.7,3019.6,13.13198695]
[1764265917735,0.002,3019.7,3019.6,13.61118695]
[1764265918078,0.4613,3019.7,3019.6,12.33788695]
[1764265918240,0.9299,3019.7,3019.6,7.79349155]
[1764265918436,0.9299,3019.7,3019.6,11.10518846]
[1764265919974,0.9299,3019.7,3019.6,4.77518846]
[1764265920375,1.2401049,3019.7,3019.6,4.77518846]
[1764265920736,0.4613,3019.7,3019.6,4.80830542]
[1764265921038,0.4613,3019.7,3019.6,4.77518846]
[1764265921469,0.9299,3019.7,3019.6,4.77518846]
[1764265921772,0.002,3019.7,3019.6,5.29340542]
[1764265921951,0.002,3019.7,3019.6,6.65661879]
[1764265922153,0.002,3019.7,3019.6,6.62350183]
[1764265922746,0.002,3019.7,3019.6,6.13840183]
[1764265923074,0.002,3019.7,3019.6,6.17151879]
[1764265924046,0.4613,3019.7,3019.6,6.17151879]
[1764265924862,0.002,3019.7,3019.6,6.65661879]
[1764265925172,0.002,3019.7,3019.6,6.62350183]
[1764265925976,0.4686,3019.9,3019.7,1.25249155]
[1764265926143,0.4686,3019.9,3019.8,0.03311477]
[1764265926340,0.77890119,3019.9,3019.8,0.03311477]
[1764265926568,1.23820119,3019.9,3019.8,3.34459235]
[1764265927993,0.76960119,3019.9,3019.8,4.92567988]
[1764265928182,0.31030119,3019.9,3019.8,5.41077988]
[1764265930266,0.76800119,3019.9,3019.8,4.92567988]
[1764265931700,1.23760119,3019.9,3019.8,4.92567988]
[1764265931994,1.23760119,3019.9,3019.8,12.50817143]
[1764265932203,1.23760119,3019.9,3019.8,12.47505666]
[1764265934488,1.23760119,3019.9,3019.8,10.89396913]
[1764265934809,1.23760119,3019.9,3019.5,0.001]
[1764265934810,4.54899333,3019.9,3019.5,0.001]
[1764265934970,3.70081524,3019.6,3019.5,0.001]
[1764265935166,4.01111643,3019.6,3019.5,0.001]
[1764265935397,4.48071643,3019.6,3019.5,0.001]
[1764265935607,4.92878807,3019.6,3019.5,0.001]
[1764265936166,8.24048498,3019.6,3019.5,0.001]
[1764265937799,8.24010689,3019.6,3019.5,0.001]
[1764265938504,9.471205,3019.6,3019.5,0.001]
[1764265938691,0.1,3019.3,3019.2,0.001]
[1764265938896,4.86183645,3019.3,3019.2,0.001]
[1764265939202,5.33143645,3019.3,3019.2,0.001]
[1764265939409,5.46412777,3019.3,3019.2,0.001]
[1764265939988,8.77615373,3019.3,3019.2,0.001]
[1764265940191,10.11278898,3019.3,3019.2,0.001]
[1764265944131,13.35590422,3019.3,3019.2,0.001]
[1764265944351,10.32178898,3019.3,3019.2,0.001]
[1764265946357,10.01278898,3019.3,3019.2,0.001]
[1764265947060,10.11278898,3019.3,3019.2,0.001]
[1764265948361,10.01278898,3019.3,3019.2,0.001]
[1764265952437,6.76967374,3019.3,3019.2,0.001]
[1764265952633,10.01278898,3019.3,3019.2,0.001]
[1764265956031,10.11278898,3019.3,3019.2,0.001]
[1764265957870,10.01278898,3019.3,3019.2,0.001]
[1764265958365,6.36416974,3019.3,3019.2,0.001]
[1764265960066,4.30194038,3019.3,3019.2,0.001]
[1764265966074,3.83234038,3019.3,3019.2,0.001]
[1764265967084,0.44261442,3019.3,3019.2,0.4796]
[1764265967292,0.3099231,3019.3,3019.2,0.9735]
[1764265967453,0.3099231,3019.3,3019.2,2.22599155]
[1764265967983,0.3099231,3019.3,3019.2,6.11072619]
[1764265968785,0.31020657,3019.3,3019.2,6.11072619]
[1764265970257,0.002,3019.5,3019.2,9.42286185]
[1764265970559,0.002,3019.5,3019.4,0.4786]
[1764265970763,0.31187542,3019.5,3019.4,0.4786]
[1764265970963,0.31187542,3019.5,3019.4,1.93568619]
[1764265972187,0.31187542,3019.5,3019.4,5.24760246]
[1764265973691,0.31187542,3019.5,3019.4,2.21567774]
[1764265974168,0.31187542,3019.5,3019.4,2.42467774]
[1764265977183,0.80927542,3019.5,3019.4,2.42467774]
[1764265977683,1.27967542,3019.5,3019.4,1.25249155]
[1764265977984,1.27967542,3019.5,3019.4,1.46149155]
[1764265980794,0.31187542,3019.5,3019.4,5.25200782]
[1764265981088,0.31187542,3019.5,3019.4,5.74590782]
[1764265981258,0.80927542,3019.5,3019.4,1.46149155]
[1764265981585,4.59148201,3019.5,3019.2,0.001]
[1764265981778,0.4974,3019.3,3019.2,0.001]
[1764265981977,0.80727542,3019.3,3019.2,0.001]
[1764265982289,1.27767542,3019.3,3019.2,0.001]
[1764265982885,1.48667542,3019.3,3019.2,0.001]
[1764265983978,1.01627542,3019.3,3019.2,0.001]
[1764265985464,4.32830138,3019.3,3019.2,0.001]
[1764265985667,1.48667542,3019.3,3019.2,0.001]
[1764265989607,4.79870138,3019.3,3019.2,0.001]
[1764265989902,9.19379696,3019.3,3019.2,0.001]
[1764265990575,9.19379696,3019.3,3019.2,1.1853]
[1764265990576,0.51887542,3019.3,3019.2,1.1853]
[1764265990889,0.209,3019.3,3019.2,1.94401546]
[1764265991095,0.209,3019.3,3019.2,2.7648435]
[1764265991292,0.002,3019.5,3019.2,2.73172215]
[1764265991516,0.002,3019.5,3019.4,1.67572977]
[1764265991884,0.002,3019.5,3019.4,7.5843329]
[1764265992078,0.002,3020.0,3019.5,0.72559411]
[1764265992274,0.002,3020.0,3019.8,1.77557569]
[1764265992471,0.002,3020.0,3019.8,2.26447569]
[1764265992906,0.002,3020.0,3019.8,2.9900698]
[1764265993075,0.002,3020.3,3020.0,0.1]
[1764265993275,0.002,3020.3,3020.1,4.68499158]
[1764265993505,0.002,3020.3,3020.1,6.98192792]
[1764265993710,0.002,3020.3,3020.1,7.47082792]
[1764265994082,0.002,3020.3,3020.1,10.78197655]
[1764265994283,0.002,3020.3,3020.1,9.00242937]
[1764265996404,0.002,3020.3,3020.1,10.18625926]
[1764265996979,0.002,3020.3,3020.1,4.80383779]
[1764265997173,0.002,3020.3,3020.1,4.52393779]
[1764265997875,0.002,3020.3,3020.1,5.01283779]
[1764265998077,0.002,3020.3,3020.1,5.04594927]
[1764265999816,0.002,3020.3,3020.1,5.01283779]
[1764266000118,0.002,3020.3,3020.1,5.04594927]
[1764266004321,0.002,3020.3,3020.1,4.52393779]
[1764266004923,0.002,3020.3,3020.1,4.55704927]
[1764266006516,0.002,3020.3,3020.1,5.04594927]
[1764266009030,0.002,3020.3,3020.1,12.62844082]
[1764266009237,0.002,3020.3,3020.1,12.59532934]
[1764266013804,0.002,3020.3,3020.1,12.69532934]
[1764266014626,0.002,3020.3,3020.1,12.59532934]
[1764266014829,0.002,3020.6,3020.5,1.24449155]
[1764266015044,0.002,3020.6,3020.5,2.24608781]
[1764266015246,0.002,3020.6,3020.5,2.73498781]
[1764266015743,0.002,3020.6,3020.5,6.04569795]
[1764266016445,0.002,3020.6,3020.5,5.83669795]
[1764266016747,0.002,3020.6,3020.5,6.04569795]
[1764266019121,0.002,3020.6,3020.5,6.01259085]
[1764266019330,0.002,3020.6,3020.5,6.04569795]
[1764266020048,0.002,3020.6,3020.5,6.01259085]
[1764266021116,0.4729,3021.3,3020.9,1.24049155]
[1764266021337,0.4729,3021.3,3021.0,0.209]
[1764266021844,0.4312,3021.1,3021.0,0.209]
[1764266022422,0.4312,3021.1,3021.0,3.51916219]
[1764266022626,0.4312,3021.1,3021.0,3.55226381]
[1764266023227,0.8891,3021.1,3021.0,3.51916219]
[1764266023954,0.4312,3021.1,3021.0,3.55226381]
[1764266024243,0.4312,3021.1,3021.0,4.36257447]
[1764266025050,0.4312,3021.1,3021.0,1.05241228]
[1764266025750,0.4312,3021.1,3021.0,4.36257447]
[1764266026850,0.4312,3021.1,3021.0,5.60306602]
[1764266027173,0.002,3021.1,3021.0,6.08076602]
[1764266027322,0.002,3021.5,3021.3,1.23849155]
[1764266027517,0.002,3021.5,3021.4,1.23849155]
[1764266027740,0.002,3021.5,3021.4,1.44749155]
[1764266028847,0.002,3021.5,3021.4,2.37699155]
[1764266029143,0.002,3021.5,3021.4,2.61800065]
[1764266029347,0.002,3021.5,3021.4,5.92772461]
[1764266030449,0.002,3021.5,3021.4,2.16620065]
[1764266030753,0.002,3021.5,3021.4,5.47592461]
[1764266031830,0.6595,3021.5,3020.7,1.18838562]
[1764266032155,1.13109811,3020.7,3020.5,0.001]
[1764266032469,3.95652689,3020.6,3020.5,0.001]
[1764266032621,0.71654445,3020.6,3020.5,0.001]
[1764266032959,1.30706626,3020.6,3020.5,0.001]
[1764266033454,4.6176668,3020.6,3020.5,0.001]
[1764266034223,4.89116708,3020.6,3020.5,0.001]
[1764266042572,4.99116708,3020.6,3020.5,0.001]
[1764266043751,5.39667108,3020.6,3020.5,0.001]
[1764266044278,6.39138417,3020.6,3020.5,0.001]
[1764266044456,7.11697828,3020.6,3020.5,0.001]
[1764266045278,7.01697828,3020.6,3020.5,0.001]
[1764266046268,5.2106391,3020.6,3020.5,0.001]
[1764266046572,4.48504499,3020.6,3020.5,0.001]
[1764266047758,4.48504499,3020.6,3020.5,1.23489155]
[1764266048676,4.07954099,3020.6,3020.5,1.23489155]
[1764266048883,3.62164099,3020.6,3020.5,1.23489155]
[1764266051086,4.08964099,3020.6,3020.5,1.23489155]
[1764266063393,4.09082903,3020.6,3020.5,1.23489155]
[1764266070095,4.09091895,3020.6,3020.5,1.23489155]
[1764266070902,3.62291895,3020.6,3020.5,1.23489155]
[1764266071074,3.62291895,3020.6,3020.5,1.69199155]
[1764266071075,0.31041841,3020.6,3020.5,1.69199155]
[1764266071275,3.62101895,3020.6,3020.5,1.69199155]
[1764266074674,0.31041841,3020.6,3020.5,1.69199155]
[1764266075000,3.62101895,3020.6,3020.5,1.69199155]
[1764266076809,0.31041841,3020.6,3020.5,1.69199155]
[1764266076984,3.62101895,3020.6,3020.5,1.69199155]
[1764266077810,0.31041841,3020.6,3020.5,1.69199155]
[1764266078301,0.31041841,3020.6,3020.5,2.18779155]
[1764266080712,0.31041841,3020.6,3020.5,6.06927078]
[1764266080880,0.31041841,3020.6,3020.5,5.49850169]
[1764266082209,0.31041841,3020.6,3020.5,5.53160879]
[1764266083912,4.03548276,3021.3,3020.5,8.84231893]
[1764266084112,0.30970046,3021.2,3021.1,0.4733]
[1764266084286,0.30970046,3021.2,3021.1,0.209]
[1764266084488,0.30970046,3021.2,3021.1,1.1356]
[1764266085608,0.30970046,3021.2,3021.1,1.91619155]
[1764266085913,0.30970046,3021.2,3021.1,5.67954417]
[1764266086115,0.002,3021.4,3021.1,9.88856673]
[1764266086296,0.002,3021.4,3021.3,0.4733]
[1764266086615,0.31135854,3021.4,3021.3,1.70719155]
[1764266086917,0.31135854,3021.4,3021.3,2.16049155]
[1764266087314,0.31135854,3021.4,3021.3,5.47032506]
[1764266087315,0.002,3021.4,3021.3,5.47032506]
[1764266087496,0.002,3021.4,3021.3,6.45914815]
[1764266088097,0.002,3021.4,3021.3,8.48563853]
[1764266088292,0.002,3021.4,3021.3,8.59463853]
[1764266088614,0.002,3021.4,3021.3,8.69463853]
[1764266101616,0.002,3021.4,3021.3,0.98882309]
[1764266101816,0.4563,3021.4,3021.3,1.44289155]
[1764266102204,0.745,3021.4,3021.3,1.23389155]
[1764266102737,0.745,3021.4,3021.3,1.44289155]
[1764266104207,0.745,3021.4,3021.3,4.75272506]
[1764266104414,0.4563,3021.4,3021.3,4.75272506]
[1764266104914,0.745,3021.4,3021.3,1.23389155]
[1764266105111,0.745,3021.4,3021.3,1.44289155]
[1764266105653,0.745,3021.4,3021.3,4.75272506]
[1764266105654,0.002,3021.4,3021.3,4.75272506]
[1764266105860,0.002,3021.4,3021.3,6.03230252]
[1764266106144,0.002,3021.4,3021.3,6.58560252]
[1764266106616,0.002,3021.4,3021.3,7.31219663]
[1764266107016,0.002,3021.4,3021.3,13.64219663]
[1764266107425,0.002,3021.4,3021.3,6.07830508]
[1764266107616,0.002,3021.4,3021.3,7.89095059]
[1764266107823,0.002,3021.4,3021.3,7.85785226]
[1764266108332,0.002,3021.4,3021.3,6.48380908]
[1764266108502,0.002,3021.4,3021.3,6.51690741]
[1764266108836,0.002,3021.4,3021.3,6.48380908]
[1764266109921,0.002,3021.4,3021.3,6.07830508]
[1764266110126,0.002,3021.4,3021.3,6.11140341]
[1764266110432,0.002,3021.4,3021.3,7.89051292]
[1764266110631,0.002,3021.4,3021.3,7.85741459]
[1764266110802,0.002,3021.4,3021.3,11.01779652]
[1764266112444,0.002,3021.4,3021.3,9.23868701]
[1764266112750,0.002,3021.4,3021.3,7.09714783]
[1764266112947,0.002,3021.4,3021.3,5.52500508]
[1764266113138,0.002,3021.4,3021.3,5.05170508]
[1764266114543,0.2756,3021.4,3021.3,5.05170508]
[1764266114750,0.7432,3021.4,3021.3,4.24542762]
[1764266115047,0.2756,3021.4,3021.3,4.24542762]
[1764266115250,0.002,3021.4,3021.3,5.23622595]
[1764266115748,0.002,3021.4,3021.3,5.33622595]
[1764266116245,0.002,3021.4,3021.3,5.23622595]
[1764266116546,0.002,3021.4,3021.3,6.58499449]
[1764266117118,0.002,3021.4,3021.3,5.59419616]
[1764266117315,0.1929,3021.4,3021.3,4.24542762]
[1764266117749,0.002,3021.4,3021.3,4.71262762]
[1764266118056,0.002,3021.4,3021.3,5.20312762]
[1764266118443,0.4623,3021.4,3021.3,4.24542762]
[1764266118922,0.2001,3021.6,3021.5,0.76959155]
[1764266119121,0.002,3021.8,3021.5,0.76959155]
[1764266119355,0.002,3021.8,3021.6,3.30950489]
[1764266119660,0.002,3021.8,3021.7,0.209]
[1764266119820,0.31157911,3021.8,3021.7,0.209]
[1764266121431,0.002,3021.8,3021.7,4.01868932]
[1764266121655,0.002,3021.8,3021.7,6.50088859]
[1764266122255,0.002,3021.8,3021.7,5.41098971]
[1764266123160,0.002,3021.8,3021.7,7.91772657]
[1764266123358,0.002,3021.8,3021.7,6.10348987]
[1764266123656,0.002,3021.8,3021.7,6.13658382]
[1764266124359,0.002,3021.8,3021.7,7.88749073]
[1764266125063,0.002,3021.8,3021.7,7.78749073]
[1764266125356,0.002,3021.8,3021.7,6.10348987]
[1764266125563,0.002,3021.8,3021.7,6.13658382]
[1764266126132,0.002,3021.8,3021.7,6.10348987]
[1764266127233,0.002,3021.8,3021.7,6.13658382]
[1764266127435,0.002,3021.8,3021.7,8.52063321]
[1764266127647,0.002,3021.8,3021.7,8.48753926]
[1764266128251,0.002,3021.8,3021.7,6.10348987]
[1764266129633,0.002,3021.8,3021.7,9.2638718]
[1764266129834,0.002,3021.8,3021.7,6.10348987]
[1764266130739,0.002,3021.8,3021.7,5.14578987]
[1764266130948,0.002,3021.8,3021.7,5.04578987]
[1764266132460,0.002,3021.8,3021.7,5.81538142]
[1764266133033,0.002,3021.8,3021.7,5.60638142]
[1764266133237,0.002,3021.8,3021.7,5.81538142]
[1764266134969,0.002,3021.8,3021.7,5.84847537]
[1764266135856,0.002,3021.8,3021.7,5.81538142]
[1764266136057,0.002,3021.8,3021.7,7.00416418]
[1764266137038,0.002,3021.8,3021.3,1.18978276]
[1764266137039,0.405504,3021.7,3021.3,1.18978276]
[1764266137339,0.30950113,3021.6,3021.4,0.03309723]
[1764266137557,0.002,3021.8,3021.3,0.21]
[1764266137558,0.30950113,3021.5,3021.3,0.21]
[1764266137763,0.30950113,3021.4,3021.3,0.21]
[1764266140867,0.002,3021.8,3021.3,4.60993351]
[1764266141045,0.002,3021.8,3021.4,0.77703154]
[1764266142481,0.002,3021.8,3021.5,6.61922884]
[1764266142779,0.002,3021.8,3021.5,3.30961442]
[1764266143944,0.002,3021.8,3021.4,4.0867105]
[1764266144846,0.002,3021.8,3021.4,0.77703154]
[1764266145057,0.002,3021.8,3021.3,0.21]
[1764266145376,0.002,3021.8,3021.3,3.51980394]
[1764266145566,0.002,3021.8,3021.3,0.21]
[1764266146076,0.002,3021.8,3021.3,3.51979747]
[1764266146289,0.002,3021.8,3021.4,3.27130016]
[1764266146453,0.002,3021.8,3021.5,4.31970753]
[1764266146646,0.002,3021.8,3021.6,0.03309504]
[1764266146845,0.002,3021.8,3021.7,0.209]
[1764266151674,0.002,3021.8,3021.7,0.97859155]
[1764266156295,0.31093952,3021.8,3021.7,0.97859155]
[1764266157981,0.002,3021.8,3021.7,4.28798692]
[1764266158164,0.002,3021.8,3021.7,5.37165794]
[1764266158865,0.002,3021.8,3021.7,2.06226257]
[1764266159066,0.3885,3021.8,3021.7,5.37165794]
[1764266159588,0.002,3021.8,3021.7,6.36175794]
[1764266160300,0.002,3021.8,3021.7,9.59996087]
[1764266163804,0.002,3021.8,3021.7,6.36175794]
[1764266163982,0.002,3021.8,3021.7,6.39485189]
[1764266164692,0.002,3021.8,3021.7,5.37165794]
[1764266164879,0.002,3021.8,3021.7,5.40475189]
[1764266165071,0.002,3021.8,3021.7,5.89785189]
[1764266165483,0.002,3021.8,3021.7,5.86475794]
[1764266166002,0.002,3021.8,3021.7,9.63305482]
[1764266166200,0.002,3021.8,3021.7,9.59996087]
[1764266166573,0.002,3021.8,3021.7,9.69996087]
[1764266166975,0.002,3021.8,3021.7,11.48133136]
[1764266167377,0.002,3021.8,3021.7,12.20692547]
[1764266168373,0.002,3021.8,3021.7,8.86872254]
[1764266168575,0.002,3021.8,3021.7,8.37172254]
[1764266168776,0.002,3021.8,3021.7,7.87862254]
[1764266169206,0.002,3021.8,3021.7,8.37072254]
[1764266169401,0.3885,3022.2,3021.9,0.76759155]
[1764266169608,0.002,3022.2,3022.0,0.76759155]
[1764266169786,0.002,3022.2,3022.1,0.24208957]
[1764266170307,0.0059,3022.2,3022.1,0.24208957]
[1764266171000,0.0059,3022.2,3022.1,3.55104691]
[1764266171392,0.0059,3022.2,3022.1,0.24208957]
[1764266171599,0.002,3022.2,3022.1,4.02394691]
[1764266171791,0.002,3022.2,3022.1,4.76212302]
[1764266173014,0.002,3022.2,3022.1,4.72903345]
[1764266173507,0.002,3022.2,3022.1,4.25613345]
[1764266173709,0.002,3022.2,3022.1,4.76212302]
[1764266173915,0.0059,3022.2,3022.1,4.25613345]
[1764266175011,0.0059,3022.2,3022.1,4.28922302]
[1764266175395,0.0059,3022.2,3022.1,5.05681457]
[1764266175582,0.0059,3022.2,3022.1,5.023725]
[1764266176490,0.0059,3022.2,3022.1,1.71476766]
[1764266176812,0.0059,3022.2,3022.1,4.28554889]
[1764266177218,0.0059,3022.2,3022.1,0.97659155]
[1764266177522,0.0059,3022.2,3022.1,4.28554889]
[1764266181290,0.002,3022.2,3022.1,5.45903846]
[1764266182802,0.0059,3022.2,3022.1,0.76759155]
[1764266183004,0.69811105,3022.2,3022.1,0.76759155]
[1764266183488,0.31151105,3022.2,3022.1,0.76759155]
[1764266183803,0.69811105,3022.2,3022.1,0.76759155]
[1764266188040,0.31541105,3022.2,3022.1,0.76759155]
[1764266190801,4.0069589,3022.2,3022.1,0.76759155]
[1764266191540,0.69811105,3022.2,3022.1,0.76759155]
[1764266192439,0.31151105,3022.2,3022.1,0.76759155]
[1764266192936,0.31541105,3022.2,3022.1,0.76759155]
[1764266193301,0.31151105,3022.2,3022.1,0.76759155]